{"text_format":"1","workbook":"xlsx","n_sheets":1,"sheets":["Master Data  "],"not_rendered":{"charts":0,"images":1,"macros":0,"external_links":0,"defined_names":2,"comments":0,"pivot_tables":0},"unopened":[],"bounds":{"document_bytes":16777216,"sheet_cells":100000,"rows_first":2000,"rows_last":500,"rows_between":2000,"halvings":0,"cell_chars":16384,"cell_head_chars":4096},"cells_cut":0,"cells_raw":0,"read":"whole","date_system":"1900"}

{"sheet":"Master Data  ","index":0,"n_rows":62,"n_cols":17,"rows_kept":62,"cut":false,"hidden":false,"merged":[]}
["Period (YYYYMM)","Contractor Name","MSHA Number","Company code","Organization","Division ","Department","Hours","First Aid","Restricted Duty","Medical Treatment ","Lost Time","Occupational Illness","Property Damage","Reason if submitting late or a change ","Person Reporting Hours","Area Contact"]
[202207,"Example Contractor Name",null,1350,"Maintenance Services","Maintenance Services","Boiler Shop"]
[{"$f":"IF(A2=\"\",\"\",$A$2)","v":202207},{"$f":"IF(B2=\"\",\"\",$B$2)","v":"Example Contractor Name"},null,1350,"Maintenance Services","Maintenance Services","Machine Shop",null,null,null,null,null,null,null,{"$f":"IF(O2=\"\",\"\",$O$2)","v":""},{"$f":"IF(P2=\"\",\"\",$P$2)","v":""}]
[{"$f":"IF(A3=\"\",\"\",$A$2)","v":202207},{"$f":"IF(B3=\"\",\"\",$B$2)","v":"Example Contractor Name"},null,1350,"Maintenance Services","Maintenance Services","Industrial Railroad",null,null,null,null,null,null,null,{"$f":"IF(O3=\"\",\"\",$O$2)","v":""},{"$f":"IF(P3=\"\",\"\",$P$2)","v":""}]
[202207,"Example Contractor Name",null,1350,"Maintenance Services","Maintenance Services","Power House ",null,null,null,null,null,null,null,"",""]
[202207,"Example Contractor Name",null,1350,"Maintenance Services","Maintenance Services","Electrical ",null,null,null,null,null,null,null,"",""]
[202207,"Example Contractor Name",null,1350,"Maintenance Services","Maintenance Services","Field and Pump Repair",null,null,null,null,null,null,null,"",""]
[202207,"Example Contractor Name",null,1350,"Maintenance Services","Maintenance Services","Light Vehicle Garage",null,null,null,null,null,null,null,"",""]
[202207,"Example Contractor Name",null,1350,"Maintenance Services","Maintenance Services","Surface",null,null,null,null,null,null,null,"",""]
[202207,"Example Contractor Name",null,1350,"Maintenance Services","Maintenance Services","RCM",null,null,null,null,null,null,null,"",""]
[202207,"Example Contractor Name",null,1350,"Processing","Hydrometalurgical","CLP",null,null,null,null,null,null,null,"",""]
[202207,"Example Contractor Name",null,1350,"Processing","Hydrometalurgical","SX EW",null,null,null,null,null,null,null,"",""]
[202207,"Example Contractor Name",null,1350,"Processing","Hydrometalurgical","Leaching",null,null,null,null,null,null,null,"",""]
[202207,"Example Contractor Name",null,1350,"Processing","Mill","Morenci Concentrator",null,null,null,null,null,null,null,"",""]
[202207,"Example Contractor Name",null,1350,"Processing","Mill","Metcalf Concnetrator",null,null,null,null,null,null,null,"",""]
[202207,"Example Contractor Name",null,1350,"Processing","Mill","Tailings",null,null,null,null,null,null,null,"",""]
[202207,"Example Contractor Name",null,1350,"Processing","Crush and Convey","Crush and Convey",null,null,null,null,null,null,null,"",""]
[202207,"Example Contractor Name",null,1350,"Mine","Mine Maintenance","Mine Maintenance",null,null,null,null,null,null,null,"",""]
[202207,"Example Contractor Name",null,1350,"Mine","Mine Maintenance","Mine Maintenance Non Direct Support",null,null,null,null,null,null,null,"",""]
[202207,"Example Contractor Name",null,1350,"Mine","Mine Operations","Fragmentation-Loading Support",null,null,null,null,null,null,null,"",""]
[202207,"Example Contractor Name",null,1350,"Mine","Mine Operations","Haulage",null,null,null,null,null,null,null,"",""]
[202207,"Example Contractor Name",null,1350,"Mine","Mine Technical","Resource Management",null,null,null,null,null,null,null,"",""]
[202207,"Example Contractor Name",null,1350,"Administration","Administration","Administration",null,null,null,null,null,null,null,"",""]
[202207,"Example Contractor Name",null,1350,"Administration","Administration","Global Supply",null,null,null,null,null,null,null,"",""]
[202207,"Example Contractor Name",null,1350,"Administration","Administration","Plant Engineering",null,null,null,null,null,null,null,"",""]
[202207,"Example Contractor Name",null,1350,"Administration","Administration","Environmental",null,null,null,null,null,null,null,"",""]
[202207,"Example Contractor Name",null,1350,"Administration","Administration","Training Department",null,null,null,null,null,null,null,"",""]
[202207,"Example Contractor Name",null,1350,"Administration","Administration","Health & Safety",null,null,null,null,null,null,null,"",""]
[202207,"Example Contractor Name",null,1350,"Project Work","Maintenance Services","Boiler Shop",null,null,null,null,null,null,null,"",""]
[202207,"Example Contractor Name",null,1350,"Project Work","Maintenance Services","Machine Shop",null,null,null,null,null,null,null,"",""]
[202207,"Example Contractor Name",null,1350,"Project Work","Maintenance Services","Industrial Railroad",null,null,null,null,null,null,null,"",""]
[202207,"Example Contractor Name",null,1350,"Project Work","Maintenance Services","Power House ",null,null,null,null,null,null,null,"",""]
[202207,"Example Contractor Name",null,1350,"Project Work","Maintenance Services","Electrical ",null,null,null,null,null,null,null,"",""]
[202207,"Example Contractor Name",null,1350,"Project Work","Maintenance Services","Field and Pump Repair",null,null,null,null,null,null,null,"",""]
[202207,"Example Contractor Name",null,1350,"Project Work","Maintenance Services","Light Vehicle Garage",null,null,null,null,null,null,null,"",""]
[202207,"Example Contractor Name",null,1350,"Project Work","Maintenance Services","Surface",null,null,null,null,null,null,null,"",""]
[202207,"Example Contractor Name",null,1350,"Project Work","Maintenance Services","RCM",null,null,null,null,null,null,null,"",""]
[202207,"Example Contractor Name",null,1350,"Project Work","Hydrometalurgical","CLP",null,null,null,null,null,null,null,"",""]
[202207,"Example Contractor Name",null,1350,"Project Work","Hydrometalurgical","SX EW",null,null,null,null,null,null,null,"",""]
[202207,"Example Contractor Name",null,1350,"Project Work","Hydrometalurgical","Leaching",null,null,null,null,null,null,null,"",""]
[202207,"Example Contractor Name",null,1350,"Project Work","Mill","Morenci Concentrator",null,null,null,null,null,null,null,"",""]
[202207,"Example Contractor Name",null,1350,"Project Work","Mill","Metcalf Concnetrator",null,null,null,null,null,null,null,"",""]
[202207,"Example Contractor Name",null,1350,"Project Work","Mill","Tailings",null,null,null,null,null,null,null,"",""]
[202207,"Example Contractor Name",null,1350,"Project Work","Crush and Convey","Crush and Convey",null,null,null,null,null,null,null,"",""]
[202207,"Example Contractor Name",null,1350,"Project Work","Mine Maintenance","Mine Maintenance",null,null,null,null,null,null,null,"",""]
[202207,"Example Contractor Name",null,1350,"Project Work","Mine Maintenance","Mine Maintenance Non Direct Support",null,null,null,null,null,null,null,"",""]
[202207,"Example Contractor Name",null,1350,"Project Work","Mine Operations","Fragmentation-Loading Support",null,null,null,null,null,null,null,"",""]
[202207,"Example Contractor Name",null,1350,"Project Work","Mine Operations","Haulage",null,null,null,null,null,null,null,"",""]
[202207,"Example Contractor Name",null,1350,"Project Work","Mine Technical","Resource Management",null,null,null,null,null,null,null,"",""]
[202207,"Example Contractor Name",null,1350,"Project Work","Administration","Administration",null,null,null,null,null,null,null,"",""]
[202207,"Example Contractor Name",null,1350,"Project Work","Administration","Global Supply",null,null,null,null,null,null,null,"",""]
[202207,"Example Contractor Name",null,1350,"Project Work","Administration","Plant Engineering",null,null,null,null,null,null,null,"",""]
[202207,"Example Contractor Name",null,1350,"Project Work","Administration","Environmental",null,null,null,null,null,null,null,"",""]
[202207,"Example Contractor Name",null,1350,"Project Work","Administration","Training Department",null,null,null,null,null,null,null,"",""]
[202207,"Example Contractor Name",null,1350,"Project Work","Administration","Health & Safety",null,null,null,null,null,null,null,"",""]
[202207,"Example Contractor Name",null,1350,"Non Direct Support ","Mine Maintenance","Mine Maintenance",null,null,null,null,null,null,null,"",""]
[202207,"Example Contractor Name",null,1302,"Administration","Administration","Townsite",null,null,null,null,null,null,null,"",""]
[202207,"Example Contractor Name",null,1341,"Administration","Mercantile","Mercantile Motel",null,null,null,null,null,null,null,"",""]
[202207,"Example Contractor Name",null,1341,"Administration","Mercantile","Mercantile Lanes",null,null,null,null,null,null,null,"",""]
[202207,"Example Contractor Name",null,1341,"Administration","Mercantile","Mercantile Conoco",null,null,null,null,null,null,null,"",""]
[202207,"Example Contractor Name",null,1302,"Administration","Mercantile","Recreation Center",null,null,null,null,null,null,null,"",""]
[202207,"Example Contractor Name",null,1322,"Morenci Water and Electric","Administration","Townsite",null,null,null,null,null,null,null,"",""]